[Event "*** Titled Tuesday Blitz"]
[Site "Chess.com"]
[Date "2020.04.14"]
[Round "4"]
[White "ecwinslow"]
[Black "Enriquack"]
[Result "0-1"]
[WhiteElo "2101"]
[BlackElo "2266"]
[TimeControl "180+1"]
[EndTime "10:39:34 PDT"]
[Termination "Enriquack won on time"]

1. d4 {[%clk 0:02:16.7]} 1... Nf6 {[%clk 0:02:58]} 2. c4 {[%clk 0:02:14.4]} 2...
g6 {[%clk 0:02:58]} 3. Nc3 {[%clk 0:02:13.8]} 3... d5 {[%clk 0:02:58.3]} 4. cxd5
{[%clk 0:02:13.4]} 4... Nxd5 {[%clk 0:02:58.6]} 5. e4 {[%clk 0:02:13.4]} 5...
Nxc3 {[%clk 0:02:58.8]} 6. bxc3 {[%clk 0:02:13.9]} 6... Bg7 {[%clk 0:02:59.4]}
7. Bc4 {[%clk 0:02:12]} 7... O-O {[%clk 0:02:59.4]} 8. Ne2 {[%clk 0:02:12.5]}
8... Nc6 {[%clk 0:02:58.7]} 9. Bg5 {[%clk 0:02:06.9]} 9... b6 {[%clk 0:02:49.4]}
10. Qd2 {[%clk 0:01:57.8]} 10... Bb7 {[%clk 0:02:39.9]} 11. Bh6 {[%clk
0:01:49.6]} 11... Na5 {[%clk 0:02:33.4]} 12. Bd3 {[%clk 0:01:48.4]} 12... e5
{[%clk 0:02:22.8]} 13. d5 {[%clk 0:01:35.6]} 13... c6 {[%clk 0:02:10.2]} 14. c4
{[%clk 0:01:31.7]} 14... cxd5 {[%clk 0:02:08.9]} 15. cxd5 {[%clk 0:01:30.4]}
15... Qd6 {[%clk 0:01:54.5]} 16. h4 {[%clk 0:01:18.5]} 16... Rac8 {[%clk
0:01:47.7]} 17. h5 {[%clk 0:01:15.2]} 17... Nc4 {[%clk 0:01:45.1]} 18. Bxc4
{[%clk 0:01:13.7]} 18... Rxc4 {[%clk 0:01:44.9]} 19. Bxg7 {[%clk 0:01:11.7]}
19... Kxg7 {[%clk 0:01:43.5]} 20. hxg6 {[%clk 0:01:11.4]} 20... Qxg6 {[%clk
0:01:41.3]} 21. Ng3 {[%clk 0:01:06.6]} 21... Rfc8 {[%clk 0:01:25.7]} 22. Rh6
{[%clk 0:00:43.8]} 22... Qg4 {[%clk 0:01:11.7]} 23. Rh4 {[%clk 0:00:27.9]} 23...
Qg6 {[%clk 0:00:48.4]} 24. Nf5+ {[%clk 0:00:18]} 24... Kh8 {[%clk 0:00:45.6]}
25. Kf1 {[%clk 0:00:17.4]} 25... Ba6 {[%clk 0:00:38]} 26. Kg1 {[%clk 0:00:16.6]}
26... Rc2 {[%clk 0:00:33]} 27. Qe3 {[%clk 0:00:15.3]} 27... R8c3 {[%clk
0:00:29.3]} 28. Qe1 {[%clk 0:00:13.5]} 28... Rc4 {[%clk 0:00:09.4]} 29. Rd1
{[%clk 0:00:08.2]} 29... Qg5 {[%clk 0:00:09]} 30. d6 {[%clk 0:00:05.7]} 30...
Rc1 {[%clk 0:00:08.1]} 31. d7 {[%clk 0:00:02.4]} 31... Rxd1 {[%clk 0:00:08.2]}
32. Qxd1 {[%clk 0:00:01.7]} 32... Qd8 {[%clk 0:00:08.6]} 0-1

[Event "*** Titled Tuesday Blitz"]
[Site "Chess.com"]
[Date "2020.04.14"]
[Round "4"]
[White "Bykov_Egor"]
[Black "S2PAc"]
[Result "1-0"]
[WhiteElo "2563"]
[BlackElo "2749"]
[TimeControl "180+1"]
[EndTime "10:39:35 PDT"]
[Termination "Bykov_Egor won by resignation"]

1. Nf3 {[%clk 0:03:00.9]} 1... g6 {[%clk 0:02:59.8]} 2. d4 {[%clk 0:03:00.7]}
2... Bg7 {[%clk 0:03:00.3]} 3. c4 {[%clk 0:03:01.3]} 3... Nf6 {[%clk 0:02:58.6]}
4. Nc3 {[%clk 0:03:01.4]} 4... O-O {[%clk 0:02:59.2]} 5. e4 {[%clk 0:03:01.4]}
5... c6 {[%clk 0:02:59.6]} 6. Be2 {[%clk 0:03:01.7]} 6... d5 {[%clk 0:02:59.8]}
7. e5 {[%clk 0:02:57.5]} 7... Ne4 {[%clk 0:02:59.7]} 8. O-O {[%clk 0:02:56.3]}
8... Nxc3 {[%clk 0:02:49.6]} 9. bxc3 {[%clk 0:02:55.8]} 9... Nd7 {[%clk
0:02:49.3]} 10. Bg5 {[%clk 0:02:49.4]} 10... dxc4 {[%clk 0:02:32.2]} 11. Bxc4
{[%clk 0:02:39.1]} 11... Nb6 {[%clk 0:02:32.1]} 12. Bb3 {[%clk 0:02:30.5]} 12...
Bf5 {[%clk 0:02:23.7]} 13. Re1 {[%clk 0:02:24.3]} 13... h6 {[%clk 0:02:18.8]}
14. Bc1 {[%clk 0:02:00.7]} 14... Kh7 {[%clk 0:02:12.6]} 15. a4 {[%clk
0:01:37.8]} 15... a5 {[%clk 0:02:09.8]} 16. Nh4 {[%clk 0:01:30.6]} 16... Bc8
{[%clk 0:01:53.8]} 17. Qd3 {[%clk 0:01:29.3]} 17... Nd5 {[%clk 0:01:50.8]} 18.
e6 {[%clk 0:01:13.9]} 18... f5 {[%clk 0:01:44.1]} 19. g4 {[%clk 0:00:49.4]}
19... Bf6 {[%clk 0:01:11.7]} 20. Qh3 {[%clk 0:00:46.5]} 20... Bxh4 {[%clk
0:01:11.8]} 21. Qxh4 {[%clk 0:00:45.8]} 21... f4 {[%clk 0:01:12.7]} 22. Bc2
{[%clk 0:00:35.9]} 22... Kg7 {[%clk 0:01:04.2]} 23. Bb2 {[%clk 0:00:22.3]} 23...
g5 {[%clk 0:00:44.8]} 24. Qh3 {[%clk 0:00:20.2]} 24... b5 {[%clk 0:00:39.5]} 25.
Qd3 {[%clk 0:00:20]} 25... Nf6 {[%clk 0:00:04]} 26. Qg6+ {[%clk 0:00:20.3]}
26... Kh8 {[%clk 0:00:04.3]} 27. Qxh6+ {[%clk 0:00:20.9]} 27... Kg8 {[%clk
0:00:05.2]} 28. Re5 {[%clk 0:00:19.5]} 1-0

[Event "*** Titled Tuesday Blitz"]
[Site "Chess.com"]
[Date "2020.04.14"]
[Round "4"]
[White "Agent-JL"]
[Black "Jenia84"]
[Result "0-1"]
[WhiteElo "2552"]
[BlackElo "2337"]
[TimeControl "180+1"]
[EndTime "10:39:36 PDT"]
[Termination "Jenia84 won on time"]

1. b4 {[%clk 0:03:00.9]} 1... Nf6 {[%clk 0:02:58.5]} 2. Bb2 {[%clk 0:03:01.2]}
2... e6 {[%clk 0:02:57.3]} 3. a3 {[%clk 0:03:01]} 3... c5 {[%clk 0:02:55.7]} 4.
bxc5 {[%clk 0:02:59.7]} 4... Bxc5 {[%clk 0:02:54.8]} 5. e3 {[%clk 0:03:00]} 5...
Nc6 {[%clk 0:02:54.7]} 6. Nf3 {[%clk 0:03:00.5]} 6... b6 {[%clk 0:02:53.7]} 7.
Be2 {[%clk 0:02:59.5]} 7... Bb7 {[%clk 0:02:53.1]} 8. O-O {[%clk 0:03:00]} 8...
O-O {[%clk 0:02:52.6]} 9. c4 {[%clk 0:03:00.7]} 9... Rc8 {[%clk 0:02:51.7]} 10.
d4 {[%clk 0:02:58]} 10... Be7 {[%clk 0:02:51.3]} 11. Nbd2 {[%clk 0:02:56.8]}
11... Na5 {[%clk 0:02:50.5]} 12. Rc1 {[%clk 0:02:56.1]} 12... Ne4 {[%clk
0:02:49.5]} 13. Bd3 {[%clk 0:02:47.6]} 13... Nxd2 {[%clk 0:02:47.4]} 14. Nxd2
{[%clk 0:02:47.4]} 14... f5 {[%clk 0:02:39.2]} 15. Re1 {[%clk 0:02:37.4]} 15...
Bd6 {[%clk 0:02:35.3]} 16. e4 {[%clk 0:02:27.5]} 16... Bf4 {[%clk 0:02:28.8]}
17. Bc3 {[%clk 0:02:09.2]} 17... fxe4 {[%clk 0:02:12.8]} 18. Bxa5 {[%clk
0:02:05.8]} 18... exd3 {[%clk 0:02:11.1]} 19. Bb4 {[%clk 0:02:05]} 19... Qh4
{[%clk 0:02:02.2]} 20. g3 {[%clk 0:01:44.1]} 20... Qh3 {[%clk 0:01:56.4]} 21.
Ne4 {[%clk 0:01:36.7]} 21... Bxc1 {[%clk 0:01:53.5]} 22. Qxc1 {[%clk 0:01:37.6]}
22... Rf5 {[%clk 0:01:31]} 23. f4 {[%clk 0:01:13.7]} 23... Rh5 {[%clk
0:01:14.6]} 24. Qd2 {[%clk 0:01:01.8]} 24... Rxc4 {[%clk 0:01:05.7]} 25. Nc3
{[%clk 0:00:56]} 25... Rxd4 {[%clk 0:01:01]} 26. Nd1 {[%clk 0:00:47.4]} 26...
Rxf4 {[%clk 0:00:35.9]} 27. Ne3 {[%clk 0:00:23]} 27... Rf3 {[%clk 0:00:32.4]}
28. Rf1 {[%clk 0:00:17.3]} 28... Rxg3+ {[%clk 0:00:24.9]} 29. hxg3 {[%clk
0:00:10.8]} 29... Qxg3+ {[%clk 0:00:22.9]} 30. Ng2 {[%clk 0:00:05.6]} 30... Qh2+
{[%clk 0:00:22.6]} 31. Kf2 {[%clk 0:00:01.2]} 31... Qxg2+ {[%clk 0:00:22.4]} 32.
Ke1 {[%clk 0:00:02.1]} 32... Re5+ {[%clk 0:00:21.5]} 33. Kd1 {[%clk 0:00:01.8]}
33... Qxf1+ {[%clk 0:00:19.5]} 34. Qe1 {[%clk 0:00:02.4]} 34... Rxe1+ {[%clk
0:00:19.2]} 0-1

[Event "*** Titled Tuesday Blitz"]
[Site "Chess.com"]
[Date "2020.04.14"]
[Round "4"]
[White "IvanRadivojevic"]
[Black "BojanR1"]
[Result "1/2-1/2"]
[WhiteElo "2510"]
[BlackElo "2337"]
[TimeControl "180+1"]
[EndTime "10:39:36 PDT"]
[Termination "Game drawn by repetition"]

1. e4 {[%clk 0:03:00.1]} 1... c5 {[%clk 0:02:59.6]} 2. Nc3 {[%clk 0:02:59.8]}
2... Nc6 {[%clk 0:02:59.6]} 3. f4 {[%clk 0:03:00.3]} 3... e6 {[%clk 0:02:58.3]}
4. Nf3 {[%clk 0:03:00.7]} 4... d6 {[%clk 0:02:57.5]} 5. Bb5 {[%clk 0:03:00.7]}
5... Qc7 {[%clk 0:02:55.7]} 6. d3 {[%clk 0:03:00.6]} 6... a6 {[%clk 0:02:55.4]}
7. Bxc6+ {[%clk 0:03:00.4]} 7... Qxc6 {[%clk 0:02:56.3]} 8. O-O {[%clk
0:03:00.9]} 8... b5 {[%clk 0:02:56.5]} 9. Be3 {[%clk 0:03:00.8]} 9... Bb7 {[%clk
0:02:56]} 10. Qe1 {[%clk 0:03:01]} 10... Nf6 {[%clk 0:02:54.1]} 11. a3 {[%clk
0:03:00.9]} 11... Be7 {[%clk 0:02:53.3]} 12. Kh1 {[%clk 0:03:00.4]} 12... O-O
{[%clk 0:02:51.5]} 13. Qg3 {[%clk 0:02:47.8]} 13... b4 {[%clk 0:02:46.6]} 14.
Ne2 {[%clk 0:02:46.1]} 14... d5 {[%clk 0:02:35.8]} 15. e5 {[%clk 0:02:43.4]}
15... Ne8 {[%clk 0:02:33.7]} 16. d4 {[%clk 0:02:38.2]} 16... bxa3 {[%clk
0:02:30.9]} 17. Rxa3 {[%clk 0:02:37.4]} 17... cxd4 {[%clk 0:02:29]} 18. Nexd4
{[%clk 0:02:36.8]} 18... Qc4 {[%clk 0:02:22.7]} 19. Raa1 {[%clk 0:02:34]} 19...
Nc7 {[%clk 0:02:12.9]} 20. f5 {[%clk 0:02:33.3]} 20... f6 {[%clk 0:02:07.8]} 21.
b3 {[%clk 0:02:24.5]} 21... Qc3 {[%clk 0:01:58.8]} 22. Bd2 {[%clk 0:02:23.3]}
22... Qc5 {[%clk 0:01:49.8]} 23. fxe6 {[%clk 0:02:17.6]} 23... fxe5 {[%clk
0:01:45.6]} 24. Qxe5 {[%clk 0:01:42.1]} 24... Bf6 {[%clk 0:01:45.2]} 25. Qe3
{[%clk 0:01:35.9]} 25... Rae8 {[%clk 0:01:32.7]} 26. Rae1 {[%clk 0:01:31.6]}
26... Bxd4 {[%clk 0:01:18.3]} 27. Nxd4 {[%clk 0:01:18.7]} 27... Rxf1+ {[%clk
0:01:16.7]} 28. Rxf1 {[%clk 0:01:19.6]} 28... Nxe6 {[%clk 0:01:06.8]} 29. Nxe6
{[%clk 0:00:35.3]} 29... Qxe3 {[%clk 0:01:03.2]} 30. Bxe3 {[%clk 0:00:36.2]}
30... Rxe6 {[%clk 0:01:03]} 31. Bd4 {[%clk 0:00:33.8]} 31... Re2 {[%clk
0:00:56.5]} 32. c3 {[%clk 0:00:33.6]} 32... Bc8 {[%clk 0:00:55.9]} 33. h3 {[%clk
0:00:33.5]} 33... h6 {[%clk 0:00:44.7]} 34. b4 {[%clk 0:00:30.5]} 34... Bd7
{[%clk 0:00:43.5]} 35. Kg1 {[%clk 0:00:29.8]} 35... Bb5 {[%clk 0:00:43]} 36. Rf5
{[%clk 0:00:29.3]} 36... Bc4 {[%clk 0:00:41.2]} 37. Re5 {[%clk 0:00:28.9]} 37...
Kf7 {[%clk 0:00:37.3]} 38. Rxe2 {[%clk 0:00:20.4]} 38... Bxe2 {[%clk 0:00:36.8]}
39. Kf2 {[%clk 0:00:21.3]} 39... Bc4 {[%clk 0:00:36.9]} 40. g3 {[%clk
0:00:21.6]} 40... g6 {[%clk 0:00:37.2]} 41. h4 {[%clk 0:00:22]} 41... h5 {[%clk
0:00:37.8]} 42. Ke3 {[%clk 0:00:22.9]} 42... Ke6 {[%clk 0:00:38.4]} 43. Kf4
{[%clk 0:00:23.6]} 43... Bd3 {[%clk 0:00:38.5]} 44. Kg5 {[%clk 0:00:24]} 44...
Kf7 {[%clk 0:00:38.3]} 45. Bh8 {[%clk 0:00:24.3]} 45... Ke6 {[%clk 0:00:38.3]}
46. Bd4 {[%clk 0:00:25.2]} 46... Kf7 {[%clk 0:00:38.3]} 47. Bh8 {[%clk
0:00:26.1]} 47... Ke6 {[%clk 0:00:38.5]} 48. Bd4 {[%clk 0:00:26.7]} 1/2-1/2

[Event "*** Titled Tuesday Blitz"]
[Site "Chess.com"]
[Date "2020.04.14"]
[Round "4"]
[White "northridgehawk"]
[Black "KinKaiser"]
[Result "0-1"]
[WhiteElo "2280"]
[BlackElo "2482"]
[TimeControl "180+1"]
[EndTime "10:39:36 PDT"]
[Termination "KinKaiser won by checkmate"]

1. e4 {[%clk 0:03:00.8]} 1... c5 {[%clk 0:02:57.9]} 2. Nf3 {[%clk 0:03:00.2]}
2... d6 {[%clk 0:02:57.3]} 3. d4 {[%clk 0:02:59.9]} 3... cxd4 {[%clk 0:02:57.8]}
4. Nxd4 {[%clk 0:03:00.8]} 4... Nf6 {[%clk 0:02:58.1]} 5. Nc3 {[%clk 0:03:00.8]}
5... a6 {[%clk 0:02:57.8]} 6. h3 {[%clk 0:03:00.6]} 6... e6 {[%clk 0:02:57.6]}
7. g4 {[%clk 0:02:59.8]} 7... d5 {[%clk 0:02:57.4]} 8. exd5 {[%clk 0:02:57.5]}
8... Nxd5 {[%clk 0:02:57.4]} 9. Bg2 {[%clk 0:02:51]} 9... Nxc3 {[%clk
0:02:47.4]} 10. bxc3 {[%clk 0:02:51.9]} 10... Qc7 {[%clk 0:02:44.7]} 11. Bd2
{[%clk 0:02:42.5]} 11... Bd6 {[%clk 0:02:42.5]} 12. O-O {[%clk 0:02:42]} 12...
O-O {[%clk 0:02:42.5]} 13. Rb1 {[%clk 0:02:36.6]} 13... Nd7 {[%clk 0:02:34.7]}
14. Qe2 {[%clk 0:02:26.3]} 14... Nc5 {[%clk 0:02:25.3]} 15. g5 {[%clk
0:02:01.7]} 15... e5 {[%clk 0:02:13.1]} 16. Nf3 {[%clk 0:01:58.9]} 16... Bf5
{[%clk 0:02:06.3]} 17. Be3 {[%clk 0:01:49.1]} 17... Rfe8 {[%clk 0:01:58.2]} 18.
Nh4 {[%clk 0:01:48.8]} 18... Bc8 {[%clk 0:01:43]} 19. Rfd1 {[%clk 0:01:44.1]}
19... Rb8 {[%clk 0:01:41.3]} 20. c4 {[%clk 0:01:41.3]} 20... b6 {[%clk
0:01:39.2]} 21. Bd5 {[%clk 0:01:39.7]} 21... Be6 {[%clk 0:01:36.8]} 22. Qf3
{[%clk 0:01:31]} 22... g6 {[%clk 0:01:24.1]} 23. Ng2 {[%clk 0:01:19]} 23... Qe7
{[%clk 0:01:18]} 24. h4 {[%clk 0:01:11.5]} 24... e4 {[%clk 0:01:13.9]} 25. Qe2
{[%clk 0:01:07.6]} 25... Na4 {[%clk 0:01:07.2]} 26. Bd4 {[%clk 0:01:05.7]} 26...
Bxd5 {[%clk 0:01:03.2]} 27. cxd5 {[%clk 0:01:06.6]} 27... b5 {[%clk 0:00:50.3]}
28. Bf6 {[%clk 0:01:06]} 28... Qd7 {[%clk 0:00:46.6]} 29. Ne3 {[%clk 0:01:02.7]}
29... h5 {[%clk 0:00:34]} 30. gxh6 {[%clk 0:00:42.5]} 30... Qh3 {[%clk
0:00:32.3]} 31. Ng4 {[%clk 0:00:34.4]} 31... Rbc8 {[%clk 0:00:29.9]} 32. Rb3
{[%clk 0:00:33.9]} 32... Nc3 {[%clk 0:00:28.8]} 33. Bxc3 {[%clk 0:00:31.1]}
33... Rxc3 {[%clk 0:00:26.7]} 34. Nf6+ {[%clk 0:00:25.8]} 34... Kf8 {[%clk
0:00:26.7]} 35. Rxc3 {[%clk 0:00:15.8]} 35... Bh2+ {[%clk 0:00:22.2]} 36. Kh1
{[%clk 0:00:14.9]} 36... Bg3+ {[%clk 0:00:22.3]} 37. Kg1 {[%clk 0:00:13.9]}
37... Qh2+ {[%clk 0:00:22.6]} 38. Kf1 {[%clk 0:00:14.4]} 38... Qh1# {[%clk
0:00:23.1]} 0-1

[Event "*** Titled Tuesday Blitz"]
[Site "Chess.com"]
[Date "2020.04.14"]
[Round "4"]
[White "Fandorine"]
[Black "AshotParvanyan"]
[Result "1-0"]
[WhiteElo "2907"]
[BlackElo "2588"]
[TimeControl "180+1"]
[EndTime "10:39:37 PDT"]
[Termination "Fandorine won on time"]

1. e4 {[%clk 0:03:00.9]} 1... e6 {[%clk 0:02:58.4]} 2. d4 {[%clk 0:02:54.7]}
2... d5 {[%clk 0:02:57.7]} 3. Bd3 {[%clk 0:02:55.1]} 3... dxe4 {[%clk
0:02:56.5]} 4. Bxe4 {[%clk 0:02:56]} 4... Nf6 {[%clk 0:02:56.1]} 5. Bf3 {[%clk
0:02:56.5]} 5... Nbd7 {[%clk 0:02:52.3]} 6. Nc3 {[%clk 0:02:54.7]} 6... c6
{[%clk 0:02:28.8]} 7. Bf4 {[%clk 0:02:51.2]} 7... Be7 {[%clk 0:02:16]} 8. Nge2
{[%clk 0:02:50.5]} 8... O-O {[%clk 0:02:15.3]} 9. O-O {[%clk 0:02:50.6]} 9...
Nb6 {[%clk 0:02:07.8]} 10. Bg3 {[%clk 0:02:49.3]} 10... Nbd5 {[%clk 0:02:03.7]}
11. a4 {[%clk 0:02:32.8]} 11... Bd6 {[%clk 0:02:02.1]} 12. Re1 {[%clk
0:02:21.1]} 12... Bxg3 {[%clk 0:02:00.1]} 13. hxg3 {[%clk 0:02:09.3]} 13... Re8
{[%clk 0:01:56.3]} 14. Qd2 {[%clk 0:02:08]} 14... a5 {[%clk 0:01:50.6]} 15. Nf4
{[%clk 0:01:58.9]} 15... Qb6 {[%clk 0:01:12.4]} 16. Ncxd5 {[%clk 0:01:45.7]}
16... exd5 {[%clk 0:01:08.5]} 17. Rxe8+ {[%clk 0:01:41.8]} 17... Nxe8 {[%clk
0:01:09.4]} 18. Re1 {[%clk 0:01:35.6]} 18... Bf5 {[%clk 0:00:58.6]} 19. Bxd5
{[%clk 0:01:07.9]} 19... Qxb2 {[%clk 0:00:29.4]} 20. Bb3 {[%clk 0:01:01.6]}
20... Nf6 {[%clk 0:00:25.2]} 21. f3 {[%clk 0:00:52.6]} 21... Qa3 {[%clk
0:00:18.4]} 22. g4 {[%clk 0:00:51.9]} 22... Bg6 {[%clk 0:00:16.2]} 23. g5 {[%clk
0:00:51.3]} 23... Nd5 {[%clk 0:00:12]} 24. Nxd5 {[%clk 0:00:40.2]} 24... cxd5
{[%clk 0:00:12.9]} 25. Bxd5 {[%clk 0:00:40.5]} 25... Qxa4 {[%clk 0:00:11.9]} 26.
Bxb7 {[%clk 0:00:37.1]} 26... Rd8 {[%clk 0:00:10.6]} 27. c3 {[%clk 0:00:33.2]}
27... Qb5 {[%clk 0:00:08.3]} 28. Qe3 {[%clk 0:00:20.2]} 28... a4 {[%clk
0:00:05.3]} 29. c4 {[%clk 0:00:16.6]} 29... Qd7 {[%clk 0:00:03.9]} 30. d5 {[%clk
0:00:16]} 30... Rf8 {[%clk 0:00:03.3]} 31. Bc6 {[%clk 0:00:15.8]} 31... Qd6
{[%clk 0:00:02]} 32. c5 {[%clk 0:00:14.3]} 1-0

[Event "*** Titled Tuesday Blitz"]
[Site "Chess.com"]
[Date "2020.04.14"]
[Round "4"]
[White "SamuelGhimpu2003"]
[Black "2165149677570"]
[Result "1-0"]
[WhiteElo "2557"]
[BlackElo "2313"]
[TimeControl "180+1"]
[EndTime "10:39:37 PDT"]
[Termination "SamuelGhimpu2003 won by checkmate"]

1. e4 {[%clk 0:03:00.9]} 1... c5 {[%clk 0:03:00]} 2. Nf3 {[%clk 0:03:00.7]} 2...
d6 {[%clk 0:03:00.4]} 3. d4 {[%clk 0:03:01.1]} 3... cxd4 {[%clk 0:03:01.3]} 4.
Nxd4 {[%clk 0:03:02]} 4... Nf6 {[%clk 0:03:01.9]} 5. Nc3 {[%clk 0:03:02.6]} 5...
a6 {[%clk 0:03:02.4]} 6. h3 {[%clk 0:03:02.6]} 6... e5 {[%clk 0:03:02.7]} 7.
Nde2 {[%clk 0:03:03]} 7... b5 {[%clk 0:03:03.4]} 8. g4 {[%clk 0:03:02.1]} 8...
b4 {[%clk 0:03:03.9]} 9. Nd5 {[%clk 0:03:01.4]} 9... Nxd5 {[%clk 0:03:04.1]} 10.
Qxd5 {[%clk 0:03:00.9]} 10... Ra7 {[%clk 0:03:04]} 11. Bg2 {[%clk 0:03:00.1]}
11... Be6 {[%clk 0:03:03.9]} 12. Qd1 {[%clk 0:02:57.9]} 12... Be7 {[%clk
0:03:03.5]} 13. O-O {[%clk 0:02:55]} 13... O-O {[%clk 0:03:01.1]} 14. a3 {[%clk
0:02:55]} 14... b3 {[%clk 0:01:37.5]} 15. cxb3 {[%clk 0:02:51.2]} 15... a5
{[%clk 0:01:37.9]} 16. Nc3 {[%clk 0:02:49.7]} 16... Nc6 {[%clk 0:01:34.4]} 17.
Be3 {[%clk 0:02:48]} 17... Rb7 {[%clk 0:01:31.7]} 18. Nd5 {[%clk 0:02:48.3]}
18... Qb8 {[%clk 0:01:23.9]} 19. b4 {[%clk 0:02:47.9]} 19... axb4 {[%clk
0:01:22.2]} 20. a4 {[%clk 0:02:47.8]} 20... Bd8 {[%clk 0:01:18.1]} 21. b3 {[%clk
0:02:37.8]} 21... Ne7 {[%clk 0:01:08.1]} 22. a5 {[%clk 0:02:29.7]} 22... Nxd5
{[%clk 0:01:03.1]} 23. exd5 {[%clk 0:02:30.6]} 23... Bd7 {[%clk 0:01:04]} 24. a6
{[%clk 0:02:30.7]} 24... Rb5 {[%clk 0:00:58.5]} 25. a7 {[%clk 0:02:04.8]} 25...
Qa8 {[%clk 0:00:58.1]} 26. Qd2 {[%clk 0:02:05.4]} 26... Bb6 {[%clk 0:00:57.2]}
27. Rfc1 {[%clk 0:02:05.4]} 27... f5 {[%clk 0:00:35.5]} 28. Ra6 {[%clk 0:01:24]}
28... Bxe3 {[%clk 0:00:30.3]} 29. Qxe3 {[%clk 0:01:24.9]} 29... fxg4 {[%clk
0:00:28.5]} 30. Rxd6 {[%clk 0:01:23.5]} 30... gxh3 {[%clk 0:00:21]} 31. Rxd7
{[%clk 0:01:19.7]} 31... hxg2 {[%clk 0:00:20.7]} 32. Qg5 {[%clk 0:01:19.9]}
32... g6 {[%clk 0:00:11.3]} 33. Qh6 {[%clk 0:01:18.2]} 33... Rf7 {[%clk
0:00:10]} 34. Rcc7 {[%clk 0:01:17.1]} 34... Rxd5 {[%clk 0:00:02.8]} 35. Qg7+
{[%clk 0:00:58]} 35... Kxg7 {[%clk 0:00:02]} 36. Rxf7+ {[%clk 0:00:57.6]} 36...
Kh6 {[%clk 0:00:02.5]} 37. Rxh7+ {[%clk 0:00:57.8]} 37... Kg5 {[%clk 0:00:03.2]}
38. Rb7 {[%clk 0:00:54.9]} 38... Rd1+ {[%clk 0:00:03.6]} 39. Kxg2 {[%clk
0:00:54.7]} 39... Qd8 {[%clk 0:00:03.8]} 40. Rhd7 {[%clk 0:00:51.7]} 40... Rxd7
{[%clk 0:00:03]} 41. Rxd7 {[%clk 0:00:52.6]} 41... Qa8+ {[%clk 0:00:03]} 42. Kg3
{[%clk 0:00:53]} 42... Kf5 {[%clk 0:00:03.3]} 43. f3 {[%clk 0:00:52.5]} 43... e4
{[%clk 0:00:02.8]} 44. Rg7 {[%clk 0:00:53.4]} 44... exf3 {[%clk 0:00:02.7]} 45.
Kf2 {[%clk 0:00:53.7]} 45... Kf6 {[%clk 0:00:03.6]} 46. Rd7 {[%clk 0:00:53.3]}
46... g5 {[%clk 0:00:03.9]} 47. Rd6+ {[%clk 0:00:53.5]} 47... Kf5 {[%clk
0:00:04.5]} 48. Ra6 {[%clk 0:00:54.3]} 48... Kg4 {[%clk 0:00:04.7]} 49. Ra4
{[%clk 0:00:53.6]} 49... Kh3 {[%clk 0:00:05.2]} 50. Ra6 {[%clk 0:00:51.4]} 50...
g4 {[%clk 0:00:05.6]} 51. Rh6# {[%clk 0:00:51.8]} 1-0

[Event "*** Titled Tuesday Blitz"]
[Site "Chess.com"]
[Date "2020.04.14"]
[Round "4"]
[White "TV27"]
[Black "Larax"]
[Result "0-1"]
[WhiteElo "2069"]
[BlackElo "2390"]
[TimeControl "180+1"]
[EndTime "10:39:37 PDT"]
[Termination "Larax won by resignation"]

1. c4 {[%clk 0:03:00.3]} 1... e5 {[%clk 0:02:58.3]} 2. Nc3 {[%clk 0:02:58]} 2...
Bb4 {[%clk 0:02:58.6]} 3. Nd5 {[%clk 0:02:56.3]} 3... a5 {[%clk 0:02:58.9]} 4.
Nxb4 {[%clk 0:02:54.9]} 4... axb4 {[%clk 0:02:59]} 5. g3 {[%clk 0:02:54.2]} 5...
d5 {[%clk 0:02:54.2]} 6. cxd5 {[%clk 0:02:40.9]} 6... Qxd5 {[%clk 0:02:53.6]} 7.
f3 {[%clk 0:02:33.4]} 7... Nc6 {[%clk 0:02:48.9]} 8. b3 {[%clk 0:02:29.7]} 8...
f5 {[%clk 0:02:41.2]} 9. Nh3 {[%clk 0:02:23]} 9... Nf6 {[%clk 0:02:41.1]} 10.
Nf2 {[%clk 0:02:22.2]} 10... O-O {[%clk 0:02:39.2]} 11. Bg2 {[%clk 0:02:21.8]}
11... Be6 {[%clk 0:02:34.8]} 12. O-O {[%clk 0:02:19.5]} 12... Rfd8 {[%clk
0:02:32.3]} 13. d3 {[%clk 0:02:10]} 13... Nd4 {[%clk 0:02:25.8]} 14. Bg5 {[%clk
0:02:08.1]} 14... c6 {[%clk 0:02:19.1]} 15. e4 {[%clk 0:02:06.2]} 15... Qd7
{[%clk 0:02:03.3]} 16. f4 {[%clk 0:01:55.2]} 16... exf4 {[%clk 0:01:55.8]} 17.
gxf4 {[%clk 0:01:47.9]} 17... Rf8 {[%clk 0:01:55.5]} 18. Bxf6 {[%clk 0:01:36.3]}
18... Rxf6 {[%clk 0:01:55.2]} 19. Nh1 {[%clk 0:01:28]} 19... Raf8 {[%clk
0:01:50.3]} 20. e5 {[%clk 0:01:25.1]} 20... R6f7 {[%clk 0:01:49.9]} 21. Ng3
{[%clk 0:01:23.9]} 21... Bd5 {[%clk 0:01:49.8]} 22. Qd2 {[%clk 0:01:18]} 22...
Bxg2 {[%clk 0:01:45.6]} 23. Qxg2 {[%clk 0:01:16.4]} 23... Nb5 {[%clk 0:01:45.8]}
24. Rad1 {[%clk 0:01:11.7]} 24... Qd4+ {[%clk 0:01:42.6]} 25. Qf2 {[%clk
0:01:10.1]} 25... Rd7 {[%clk 0:01:40.9]} 26. Qxd4 {[%clk 0:01:06.8]} 26... Rxd4
{[%clk 0:01:41.8]} 27. Ne2 {[%clk 0:01:05.7]} 27... Rd7 {[%clk 0:01:36.3]} 28.
d4 {[%clk 0:01:04.4]} 28... Rfd8 {[%clk 0:01:33.8]} 29. Kf2 {[%clk 0:00:59.1]}
29... Nxd4 {[%clk 0:01:32.1]} 30. Nxd4 {[%clk 0:00:58.3]} 30... Rxd4 {[%clk
0:01:33]} 31. Rxd4 {[%clk 0:00:56.5]} 31... Rxd4 {[%clk 0:01:33.9]} 32. Ke3
{[%clk 0:00:54.9]} 32... Re4+ {[%clk 0:01:29.3]} 33. Kf3 {[%clk 0:00:53.9]}
33... Rd4 {[%clk 0:01:27.1]} 34. Ke3 {[%clk 0:00:52.8]} 34... c5 {[%clk
0:01:27.5]} 35. Rc1 {[%clk 0:00:50.6]} 35... b6 {[%clk 0:01:27.2]} 36. Rc4
{[%clk 0:00:47.8]} 36... Rd7 {[%clk 0:00:59.5]} 37. Rc2 {[%clk 0:00:46]} 37...
Kf7 {[%clk 0:00:59.5]} 38. h4 {[%clk 0:00:42.8]} 38... Ke6 {[%clk 0:00:54.4]}
39. Rd2 {[%clk 0:00:41.4]} 39... Rxd2 {[%clk 0:00:52.6]} 40. Kxd2 {[%clk
0:00:39.4]} 40... b5 {[%clk 0:00:51.9]} 41. Kd3 {[%clk 0:00:33.2]} 41... g6
{[%clk 0:00:51.4]} 42. Ke3 {[%clk 0:00:30.1]} 42... c4 {[%clk 0:00:51.7]} 43.
bxc4 {[%clk 0:00:28.7]} 43... bxc4 {[%clk 0:00:51.8]} 44. Kd4 {[%clk 0:00:27.6]}
44... c3 {[%clk 0:00:50.4]} 45. Kd3 {[%clk 0:00:26.6]} 45... h6 {[%clk
0:00:49.2]} 46. a4 {[%clk 0:00:24]} 46... bxa3 {[%clk 0:00:47.3]} 47. Kxc3
{[%clk 0:00:23.3]} 47... g5 {[%clk 0:00:40.5]} 48. fxg5 {[%clk 0:00:19.9]} 48...
hxg5 {[%clk 0:00:41.4]} 49. hxg5 {[%clk 0:00:18]} 49... Kxe5 {[%clk 0:00:41.2]}
50. Kb3 {[%clk 0:00:17.8]} 50... f4 {[%clk 0:00:41.3]} 0-1